Department,Entity, Transaction Date, Expense Type, Expense Area, Supplier Name,Transaction number, Amount
FCDO,CSC,02/10/2023,Alumni Engagement,Programme Costs,Association of Commonwealth Univs,PIN065556,10
FCDO,CSC,02/10/2023,Alumni Engagement,Programme Costs,Association of Commonwealth Univs,PIN065556,1178.53
FCDO,CSC,02/10/2023,Alumni Engagement,Programme Costs,Association of Commonwealth Univs,PIN065557,10
FCDO,CSC,02/10/2023,Alumni Engagement,Programme Costs,Association of Commonwealth Univs,PIN065557,969.3
FCDO,CSC,02/10/2023,Reimbursements,Award Costs,Scholar,PIN065571,100.92
FCDO,CSC,02/10/2023,Scholar Allowances,Award Costs,Scholar,PIN065571,522
FCDO,CSC,02/10/2023,Scholar Allowances,Award Costs,Scholar,PIN065571,522
FCDO,CSC,02/10/2023,Scholar Allowances,Award Costs,Scholar,PIN065571,522
FCDO,CSC,02/10/2023,Scholar Allowances,Award Costs,Scholar,PIN065571,522
FCDO,CSC,02/10/2023,Scholar Allowances,Award Costs,Scholar,PIN065571,522
FCDO,CSC,02/10/2023,Scholar Allowances,Award Costs,Scholar,PIN065571,522
FCDO,CSC,02/10/2023,Scholar Allowances,Award Costs,Scholar,PIN065571,522
FCDO,CSC,02/10/2023,Scholar Allowances,Award Costs,Scholar,PIN065571,522
FCDO,CSC,02/10/2023,Scholar Allowances,Award Costs,Scholar,PIN065571,522
FCDO,CSC,02/10/2023,Scholar Allowances,Award Costs,Scholar,PIN065571,522
FCDO,CSC,02/10/2023,Scholar Allowances,Award Costs,Scholar,PIN065571,522
FCDO,CSC,02/10/2023,Scholar Allowances,Award Costs,Scholar,PIN065571,522
FCDO,CSC,02/10/2023,Scholar Allowances,Award Costs,Scholar,PIN065571,522
FCDO,CSC,02/10/2023,Scholar Allowances,Award Costs,Scholar,PIN065571,522
FCDO,CSC,02/10/2023,Scholar Allowances,Award Costs,Scholar,PIN065571,522
FCDO,CSC,02/10/2023,Scholar Allowances,Award Costs,Scholar,PIN065571,522
FCDO,CSC,02/10/2023,Scholar Allowances,Award Costs,Scholar,PIN065571,522
FCDO,CSC,02/10/2023,Scholar Allowances,Award Costs,Scholar,PIN065571,522
FCDO,CSC,02/10/2023,Scholar Allowances,Award Costs,Scholar,PIN065571,522
FCDO,CSC,02/10/2023,Scholar Allowances,Award Costs,Scholar,PIN065571,522
FCDO,CSC,02/10/2023,Scholar Allowances,Award Costs,Scholar,PIN065571,522
FCDO,CSC,02/10/2023,Scholar Stipend,Award Costs,Scholar,PIN065571,4306.5
FCDO,CSC,02/10/2023,Scholar Stipend,Award Costs,Scholar,PIN065571,4021.5
FCDO,CSC,02/10/2023,Scholar Stipend,Award Costs,Scholar,PIN065571,4350.75
FCDO,CSC,02/10/2023,Scholar Stipend,Award Costs,Scholar,PIN065571,4218
FCDO,CSC,02/10/2023,Scholar Stipend,Award Costs,Scholar,PIN065571,4932.4
FCDO,CSC,02/10/2023,Scholar Stipend,Award Costs,Scholar,PIN065571,5118.84
FCDO,CSC,02/10/2023,Scholar Stipend,Award Costs,Scholar,PIN065571,4021.5
FCDO,CSC,02/10/2023,Scholar Stipend,Award Costs,Scholar,PIN065571,4041
FCDO,CSC,02/10/2023,Scholar Stipend,Award Costs,Scholar,PIN065571,4306.5
FCDO,CSC,02/10/2023,Scholar Stipend,Award Costs,Scholar,PIN065571,4262.25
FCDO,CSC,02/10/2023,Scholar Stipend,Award Costs,Scholar,PIN065571,4350.75
FCDO,CSC,02/10/2023,Scholar Stipend,Award Costs,Scholar,PIN065571,4041
FCDO,CSC,02/10/2023,Scholar Stipend,Award Costs,Scholar,PIN065571,4173.75
FCDO,CSC,02/10/2023,Scholar Stipend,Award Costs,Scholar,PIN065571,5010.28
FCDO,CSC,02/10/2023,Scholar Stipend,Award Costs,Scholar,PIN065571,5281.68
FCDO,CSC,02/10/2023,Scholar Stipend,Award Costs,Scholar,PIN065571,4306.5
FCDO,CSC,02/10/2023,Scholar Stipend,Award Costs,Scholar,PIN065571,4173.75
FCDO,CSC,02/10/2023,Scholar Stipend,Award Costs,Scholar,PIN065571,4021.5
FCDO,CSC,02/10/2023,Scholar Stipend,Award Costs,Scholar,PIN065571,4932.4
FCDO,CSC,02/10/2023,Scholar Stipend,Award Costs,Scholar,PIN065571,4932.4
FCDO,CSC,02/10/2023,Scholar Stipend,Award Costs,Scholar,PIN065571,4129.5
FCDO,CSC,02/10/2023,Bank Charges,Programme Costs,MasterCard Prepaid Management Services Ltd,PIN065571,1039.99
FCDO,CSC,02/10/2023,Scholar Allowances,Award Costs,Scholar,PIN065572,522
FCDO,CSC,02/10/2023,Scholar Allowances,Award Costs,Scholar,PIN065572,522
FCDO,CSC,02/10/2023,Scholar Allowances,Award Costs,Scholar,PIN065572,522
FCDO,CSC,02/10/2023,Scholar Stipend,Award Costs,Scholar,PIN065572,4173.75
FCDO,CSC,02/10/2023,Scholar Stipend,Award Costs,Scholar,PIN065572,4218
FCDO,CSC,02/10/2023,Scholar Stipend,Award Costs,Scholar,PIN065572,4262.25
FCDO,CSC,02/10/2023,Bank Charges,Programme Costs,MasterCard Prepaid Management Services Ltd,PIN065572,142.2
FCDO,CSC,04/10/2023,Scholar Allowances,Award Costs,Scholar,PIN065743,522
FCDO,CSC,04/10/2023,Scholar Allowances,Award Costs,Scholar,PIN065743,522
FCDO,CSC,04/10/2023,Scholar Allowances,Award Costs,Scholar,PIN065743,522
FCDO,CSC,04/10/2023,Scholar Allowances,Award Costs,Scholar,PIN065743,522
FCDO,CSC,04/10/2023,Scholar Allowances,Award Costs,Scholar,PIN065743,522
FCDO,CSC,04/10/2023,Scholar Allowances,Award Costs,Scholar,PIN065743,522
FCDO,CSC,04/10/2023,Scholar Allowances,Award Costs,Scholar,PIN065743,522
FCDO,CSC,04/10/2023,Scholar Allowances,Award Costs,Scholar,PIN065743,522
FCDO,CSC,04/10/2023,Scholar Allowances,Award Costs,Scholar,PIN065743,522
FCDO,CSC,04/10/2023,Scholar Allowances,Award Costs,Scholar,PIN065743,522
FCDO,CSC,04/10/2023,Scholar Allowances,Award Costs,Scholar,PIN065743,522
FCDO,CSC,04/10/2023,Scholar Allowances,Award Costs,Scholar,PIN065743,522
FCDO,CSC,04/10/2023,Scholar Allowances,Award Costs,Scholar,PIN065743,522
FCDO,CSC,04/10/2023,Scholar Stipend,Award Costs,Scholar,PIN065743,1045.39
FCDO,CSC,04/10/2023,Scholar Stipend,Award Costs,Scholar,PIN065743,4956
FCDO,CSC,04/10/2023,Scholar Stipend,Award Costs,Scholar,PIN065743,4021.5
FCDO,CSC,04/10/2023,Scholar Stipend,Award Costs,Scholar,PIN065743,3933
FCDO,CSC,04/10/2023,Scholar Stipend,Award Costs,Scholar,PIN065743,4041
FCDO,CSC,04/10/2023,Scholar Stipend,Award Costs,Scholar,PIN065743,4173.75
FCDO,CSC,04/10/2023,Scholar Stipend,Award Costs,Scholar,PIN065743,4129.5
FCDO,CSC,04/10/2023,Scholar Stipend,Award Costs,Scholar,PIN065743,4021.5
FCDO,CSC,04/10/2023,Scholar Stipend,Award Costs,Scholar,PIN065743,5064.56
FCDO,CSC,04/10/2023,Scholar Stipend,Award Costs,Scholar,PIN065743,4173.75
FCDO,CSC,04/10/2023,Scholar Stipend,Award Costs,Scholar,PIN065743,4021.5
FCDO,CSC,04/10/2023,Scholar Stipend,Award Costs,Scholar,PIN065743,4218
FCDO,CSC,04/10/2023,Scholar Stipend,Award Costs,Scholar,PIN065743,4041
FCDO,CSC,04/10/2023,Scholar Stipend,Award Costs,Scholar,PIN065743,4956
FCDO,CSC,04/10/2023,Bank Charges,Programme Costs,MasterCard Prepaid Management Services Ltd,PIN065743,635.85
FCDO,CSC,04/10/2023,Cash Card Transfers,Award Costs,Scholar,PIN065601,4659.7
FCDO,CSC,04/10/2023,Cash Card Transfers,Award Costs,Scholar,PIN065603,3559.14
FCDO,CSC,04/10/2023,Cash Card Transfers,Award Costs,Scholar,PIN065604,2824.12
FCDO,CSC,04/10/2023,Cash Card Transfers,Award Costs,Scholar,PIN065605,4079.82
FCDO,CSC,04/10/2023,Cash Card Transfers,Award Costs,Scholar,PIN065606,4202.97
FCDO,CSC,04/10/2023,Cash Card Transfers,Award Costs,Scholar,PIN065607,2296.42
FCDO,CSC,05/10/2023,Secretariat Service Provision,Programme Costs,Scholar,NOM001289,110
FCDO,CSC,05/10/2023,Secretariat Service Provision,Programme Costs,Scholar,NOM001289,646.81
FCDO,CSC,05/10/2023,Secretariat Service Provision,Programme Costs,Scholar,NOM001289,2122.35
FCDO,CSC,05/10/2023,Cash Card Transfers,Award Costs,Scholar,PIN065760,-4202.97
FCDO,CSC,05/10/2023,Cash Card Transfers,Award Costs,Scholar,PIN065760,-4079.82
FCDO,CSC,05/10/2023,Cash Card Transfers,Award Costs,Scholar,PIN065760,-2824.12
FCDO,CSC,05/10/2023,Cash Card Transfers,Award Costs,Scholar,PIN065760,-3559.14
FCDO,CSC,05/10/2023,Cash Card Transfers,Award Costs,Scholar,PIN065760,-2296.42
FCDO,CSC,05/10/2023,Cash Card Transfers,Award Costs,Scholar,PIN065760,-390.93
FCDO,CSC,05/10/2023,Cash Card Transfers,Award Costs,Scholar,PIN065760,-4659.7
FCDO,CSC,06/10/2023,Scholar Allowances,Award Costs,Scholar,PIN065584,510.69
FCDO,CSC,06/10/2023,Scholar Allowances,Award Costs,Scholar,PIN065585,1788.26
FCDO,CSC,06/10/2023,Scholar Allowances,Award Costs,Scholar,PIN065587,529
FCDO,CSC,06/10/2023,Scholar Allowances,Award Costs,Scholar,PIN065590,751.48
FCDO,CSC,06/10/2023,Scholar Allowances,Award Costs,Scholar,PIN065590,501.95
FCDO,CSC,06/10/2023,Scholar Allowances,Award Costs,Scholar,PIN065591,1382.43
FCDO,CSC,06/10/2023,Scholar Allowances,Award Costs,Scholar,PIN065592,1299
FCDO,CSC,06/10/2023,Scholar Allowances,Award Costs,Scholar,PIN065592,870
FCDO,CSC,06/10/2023,Scholar Allowances,Award Costs,Scholar,PIN065573,600
FCDO,CSC,06/10/2023,Scholar Stipend,Award Costs,Scholar,PIN065580,2472
FCDO,CSC,06/10/2023,Scholar Stipend,Award Costs,Scholar,PIN065593,1015.2
FCDO,CSC,06/10/2023,Scholar Stipend,Award Costs,Scholar,PIN065594,730.94
FCDO,CSC,06/10/2023,Scholar Stipend,Award Costs,Scholar,PIN065596,1245.17
FCDO,CSC,06/10/2023,Scholar Stipend,Award Costs,Scholar,PIN065597,812.16
FCDO,CSC,06/10/2023,Scholar Allowances,Award Costs,Scholar,PIN065598,275
FCDO,CSC,06/10/2023,Scholar Stipend,Award Costs,Scholar,PIN065598,1177.63
FCDO,CSC,06/10/2023,Commission Meetings,Admin Costs,Scholar,PIN065600,3000
FCDO,CSC,06/10/2023,Scholar Allowances,Award Costs,Scholar,PIN065744,522
FCDO,CSC,06/10/2023,Scholar Allowances,Award Costs,Scholar,PIN065744,728
FCDO,CSC,06/10/2023,Scholar Allowances,Award Costs,Scholar,PIN065744,728
FCDO,CSC,06/10/2023,Scholar Allowances,Award Costs,Scholar,PIN065744,522
FCDO,CSC,06/10/2023,Scholar Allowances,Award Costs,Scholar,PIN065744,522
FCDO,CSC,06/10/2023,Scholar Allowances,Award Costs,Scholar,PIN065744,522
FCDO,CSC,06/10/2023,Scholar Allowances,Award Costs,Scholar,PIN065744,522
FCDO,CSC,06/10/2023,Scholar Allowances,Award Costs,Scholar,PIN065744,522
FCDO,CSC,06/10/2023,Scholar Allowances,Award Costs,Scholar,PIN065744,522
FCDO,CSC,06/10/2023,Scholar Allowances,Award Costs,Scholar,PIN065744,522
FCDO,CSC,06/10/2023,Scholar Stipend,Award Costs,Scholar,PIN065744,4021.5
FCDO,CSC,06/10/2023,Scholar Stipend,Award Costs,Scholar,PIN065744,4932.4
FCDO,CSC,06/10/2023,Scholar Stipend,Award Costs,Scholar,PIN065744,4932.4
FCDO,CSC,06/10/2023,Scholar Stipend,Award Costs,Scholar,PIN065744,3977.25
FCDO,CSC,06/10/2023,Scholar Stipend,Award Costs,Scholar,PIN065744,3933
FCDO,CSC,06/10/2023,Scholar Stipend,Award Costs,Scholar,PIN065744,4041
FCDO,CSC,06/10/2023,Scholar Stipend,Award Costs,Scholar,PIN065744,4041
FCDO,CSC,06/10/2023,Scholar Stipend,Award Costs,Scholar,PIN065744,4306.5
FCDO,CSC,06/10/2023,Scholar Stipend,Award Costs,Scholar,PIN065744,4041
FCDO,CSC,06/10/2023,Scholar Stipend,Award Costs,Scholar,PIN065744,4932.4
FCDO,CSC,06/10/2023,Bank Charges,Programme Costs,MasterCard Prepaid Management Services Ltd,PIN065744,487.9
FCDO,CSC,06/10/2023,Scholar Stipend,Award Costs,Scholar,PRF000294,-3708
FCDO,CSC,10/10/2023,Alumni Engagement,Programme Costs,Association of Commonwealth Univs,PIN065608,15
FCDO,CSC,10/10/2023,Alumni Engagement,Programme Costs,Association of Commonwealth Univs,PIN065608,998.75
FCDO,CSC,10/10/2023,Alumni Engagement,Programme Costs,Association of Commonwealth Univs,PIN065609,15
FCDO,CSC,10/10/2023,Alumni Engagement,Programme Costs,Association of Commonwealth Univs,PIN065609,1006.52
FCDO,CSC,11/10/2023,Scholar Allowances,Award Costs,Scholar,PIN065761,728
FCDO,CSC,11/10/2023,Scholar Allowances,Award Costs,Scholar,PIN065761,522
FCDO,CSC,11/10/2023,Scholar Allowances,Award Costs,Scholar,PIN065761,522
FCDO,CSC,11/10/2023,Scholar Allowances,Award Costs,Scholar,PIN065761,522
FCDO,CSC,11/10/2023,Scholar Allowances,Award Costs,Scholar,PIN065761,522
FCDO,CSC,11/10/2023,Scholar Stipend,Award Costs,Scholar,PIN065761,5281.68
FCDO,CSC,11/10/2023,Scholar Stipend,Award Costs,Scholar,PIN065761,3888.75
FCDO,CSC,11/10/2023,Scholar Stipend,Award Costs,Scholar,PIN065761,3711.75
FCDO,CSC,11/10/2023,Scholar Stipend,Award Costs,Scholar,PIN065761,3844.5
FCDO,CSC,11/10/2023,Scholar Stipend,Award Costs,Scholar,PIN065761,3667.5
FCDO,CSC,11/10/2023,Bank Charges,Programme Costs,MasterCard Prepaid Management Services Ltd,PIN065761,232.12
FCDO,CSC,11/10/2023,Scholar Advances,Award Costs,Scholar,PIN065610,500
FCDO,CSC,12/10/2023,Scholar Allowances,Award Costs,Scholar,PIN065762,522
FCDO,CSC,12/10/2023,Scholar Allowances,Award Costs,Scholar,PIN065762,522
FCDO,CSC,12/10/2023,Scholar Allowances,Award Costs,Scholar,PIN065762,522
FCDO,CSC,12/10/2023,Scholar Allowances,Award Costs,Scholar,PIN065762,522
FCDO,CSC,12/10/2023,Scholar Allowances,Award Costs,Scholar,PIN065762,522
FCDO,CSC,12/10/2023,Scholar Allowances,Award Costs,Scholar,PIN065762,522
FCDO,CSC,12/10/2023,Scholar Allowances,Award Costs,Scholar,PIN065762,522
FCDO,CSC,12/10/2023,Scholar Allowances,Award Costs,Scholar,PIN065762,522
FCDO,CSC,12/10/2023,Scholar Stipend,Award Costs,Scholar,PIN065762,3402
FCDO,CSC,12/10/2023,Scholar Stipend,Award Costs,Scholar,PIN065762,3756
FCDO,CSC,12/10/2023,Scholar Stipend,Award Costs,Scholar,PIN065762,3888.75
FCDO,CSC,12/10/2023,Scholar Stipend,Award Costs,Scholar,PIN065762,3888.75
FCDO,CSC,12/10/2023,Scholar Stipend,Award Costs,Scholar,PIN065762,3800.25
FCDO,CSC,12/10/2023,Scholar Stipend,Award Costs,Scholar,PIN065762,3800.25
FCDO,CSC,12/10/2023,Scholar Stipend,Award Costs,Scholar,PIN065762,4606.72
FCDO,CSC,12/10/2023,Scholar Stipend,Award Costs,Scholar,PIN065762,3711.75
FCDO,CSC,12/10/2023,Bank Charges,Programme Costs,MasterCard Prepaid Management Services Ltd,PIN065762,350.31
FCDO,CSC,13/10/2023,Scholar Allowances,Award Costs,University of Chester,PIN065680,1575
FCDO,CSC,13/10/2023,Scholar Allowances,Award Costs,University of Chester,PIN065680,1400
FCDO,CSC,13/10/2023,Scholar Allowances,Award Costs,University of Chester,PIN065680,1375
FCDO,CSC,13/10/2023,Scholar Travel,Award Costs,University of Chester,PIN065680,3505.29
FCDO,CSC,13/10/2023,Scholar Allowances,Award Costs,University of Chester,PIN065680,1510.19
FCDO,CSC,13/10/2023,Visa Costs,Award Costs,University of Chester,PIN065680,1153.07
FCDO,CSC,13/10/2023,Scholar Travel,Award Costs,University of Chester,PIN065680,8600.82
FCDO,CSC,13/10/2023,Tuition Fee,Award Costs,The University of Nottingham,PIN065615,7600
FCDO,CSC,13/10/2023,Tuition Fee,Award Costs,The University of Nottingham,PIN065617,7600
FCDO,CSC,13/10/2023,Award Support Costs,Award Costs,Univ of Central Lancashire,PIN065711,2250
FCDO,CSC,13/10/2023,Visa Costs,Award Costs,Royal Veterinary College,PIN065683,140
FCDO,CSC,13/10/2023,Tuition Fee,Award Costs,Royal Veterinary College,PIN065683,45000
FCDO,CSC,13/10/2023,Scholar Allowances,Award Costs,Royal Veterinary College,PIN065683,450
FCDO,CSC,13/10/2023,Scholar Allowances,Award Costs,Royal Veterinary College,PIN065683,400
FCDO,CSC,13/10/2023,Scholar Travel,Award Costs,Royal Veterinary College,PIN065683,2377.7
FCDO,CSC,13/10/2023,Tuition Fee,Award Costs,The University of Nottingham,PIN065622,11700
FCDO,CSC,13/10/2023,Scholar Allowances,Award Costs,London School of Economics,PIN065672,170
FCDO,CSC,13/10/2023,Scholar Travel,Award Costs,London School of Economics,PIN065672,1921.37
FCDO,CSC,13/10/2023,Scholar Allowances,Award Costs,London School of Economics,PIN065672,800
FCDO,CSC,13/10/2023,Scholar Allowances,Award Costs,London School of Economics,PIN065672,900
FCDO,CSC,13/10/2023,Visa Costs,Award Costs,London School of Economics,PIN065672,301
FCDO,CSC,13/10/2023,Scholar Travel,Award Costs,London School of Economics,PIN065672,41.5
FCDO,CSC,13/10/2023,Scholar Travel,Award Costs,London School of Economics,PIN065672,3884
FCDO,CSC,13/10/2023,Tuition Fee,Award Costs,London School of Economics,PIN065672,90000
FCDO,CSC,13/10/2023,Tuition Fee,Award Costs,University of Leicester,PIN065660,5283.08
FCDO,CSC,13/10/2023,Award Support Costs,Award Costs,The University of Nottingham,PIN065623,5000
FCDO,CSC,13/10/2023,Reimbursements,Award Costs,University of Chester,PIN065625,85
FCDO,CSC,13/10/2023,Scholar Allowances,Award Costs,University of Chester,PIN065625,2025
FCDO,CSC,13/10/2023,Scholar Allowances,Award Costs,University of Chester,PIN065625,1800
FCDO,CSC,13/10/2023,Tuition Fee,Award Costs,The University of Warwick,PIN065621,22500
FCDO,CSC,13/10/2023,Award Support Costs,Award Costs,The University of Nottingham,PIN065612,-3800
FCDO,CSC,13/10/2023,Tuition Fee,Award Costs,The University of Nottingham,PIN065612,19000
FCDO,CSC,13/10/2023,Tuition Fee,Award Costs,The University of Nottingham,PIN065613,7368
FCDO,CSC,13/10/2023,Tuition Fee,Award Costs,The University of Nottingham,PIN065614,18000
FCDO,CSC,13/10/2023,Tuition Fee,Award Costs,The University of Nottingham,PIN065618,7368
FCDO,CSC,13/10/2023,Tuition Fee,Award Costs,The University of Leeds,PIN065616,18000
FCDO,CSC,13/10/2023,Scholar Allowances,Award Costs,Ardour Healthcare,PIN065626,4032
FCDO,CSC,13/10/2023,Tuition Fee,Award Costs,The University of Nottingham,PIN065619,9000
FCDO,CSC,13/10/2023,Award Support Costs,Award Costs,University of Bath,PIN065628,2000
FCDO,CSC,13/10/2023,Tuition Fee,Award Costs,University of Bath,PIN065628,18000
FCDO,CSC,13/10/2023,Tuition Fee,Award Costs,University of Portsmouth,PIN065682,14320
FCDO,CSC,13/10/2023,Tuition Fee,Award Costs,Goldsmiths College,PIN065698,22220
FCDO,CSC,13/10/2023,Tuition Fee,Award Costs,University of Glasgow,PIN065611,22500
FCDO,CSC,13/10/2023,Tuition Fee,Award Costs,Oriel College Oxford,PIN065620,18000
FCDO,CSC,13/10/2023,Tuition Fee,Award Costs,University of Portsmouth,PIN065684,13760
FCDO,CSC,13/10/2023,Tuition Fee,Award Costs,University of Southampton,PIN065685,22500
FCDO,CSC,13/10/2023,Scholar Engagement,Programme Costs,Pronk Limited,PIN065709,5970
FCDO,CSC,13/10/2023,Scholar Allowances,Award Costs,Queen Margaret University,PIN065624,500
FCDO,CSC,13/10/2023,Scholar Travel,Award Costs,Queen Margaret University,PIN065624,1201.92
FCDO,CSC,13/10/2023,Tuition Fee,Award Costs,University of Strathclyde,PIN065694,18000
FCDO,CSC,13/10/2023,Tuition Fee,Award Costs,The University of Birmingham,PIN065627,3516
FCDO,CSC,13/10/2023,Tuition Fee,Award Costs,Scholar,PIN065693,18000
FCDO,CSC,13/10/2023,Alumni Engagement,Programme Costs,Scholar,PIN065707,500
FCDO,CSC,13/10/2023,Tuition Fee,Award Costs,Queen Margaret University,PIN065676,17000
FCDO,CSC,13/10/2023,Tuition Fee,Award Costs,University of Southampton,PIN065686,22500
FCDO,CSC,13/10/2023,Tuition Fee,Award Costs,The University of Warwick,PIN065681,22500
FCDO,CSC,13/10/2023,Tuition Fee,Award Costs,Cranfield University,PIN065690,18000
FCDO,CSC,13/10/2023,Tuition Fee,Award Costs,University of Glasgow,PIN065687,4384
FCDO,CSC,13/10/2023,Tuition Fee,Award Costs,University of Glasgow,PIN065688,4384
FCDO,CSC,13/10/2023,Tuition Fee,Award Costs,University of Glasgow,PIN065689,18000
FCDO,CSC,13/10/2023,Tuition Fee,Award Costs,University of Glasgow,PIN065691,18000
FCDO,CSC,13/10/2023,Interview Costs,Programme Costs,Way With Words Group,PIN065708,537.16
FCDO,CSC,13/10/2023,Scholar Engagement,Programme Costs,Way With Words Group,PIN065708,309
FCDO,CSC,13/10/2023,Tuition Fee,Award Costs,The University of Edinburgh,PIN065638,5700
FCDO,CSC,13/10/2023,Tuition Fee,Award Costs,The University of Edinburgh,PIN065639,7600
FCDO,CSC,13/10/2023,Tuition Fee,Award Costs,The University of Edinburgh,PIN065640,5700
FCDO,CSC,13/10/2023,Tuition Fee,Award Costs,The University of Edinburgh,PIN065641,5700
FCDO,CSC,13/10/2023,Tuition Fee,Award Costs,The University of Edinburgh,PIN065642,6000
FCDO,CSC,13/10/2023,Tuition Fee,Award Costs,The University of Edinburgh,PIN065643,6370
FCDO,CSC,13/10/2023,Tuition Fee,Award Costs,The University of Edinburgh,PIN065644,5070
FCDO,CSC,13/10/2023,Tuition Fee,Award Costs,The University of Edinburgh,PIN065645,6370
FCDO,CSC,13/10/2023,Tuition Fee,Award Costs,The University of Edinburgh,PIN065646,5320
FCDO,CSC,13/10/2023,Tuition Fee,Award Costs,The University of Edinburgh,PIN065647,5700
FCDO,CSC,13/10/2023,Tuition Fee,Award Costs,The University of Edinburgh,PIN065648,5070
FCDO,CSC,13/10/2023,Tuition Fee,Award Costs,The University of Edinburgh,PIN065649,6370
FCDO,CSC,13/10/2023,Tuition Fee,Award Costs,The University of Edinburgh,PIN065650,6370
FCDO,CSC,13/10/2023,Tuition Fee,Award Costs,The University of Edinburgh,PIN065651,6370
FCDO,CSC,13/10/2023,Tuition Fee,Award Costs,The University of Edinburgh,PIN065652,6370
FCDO,CSC,13/10/2023,Tuition Fee,Award Costs,The University of Edinburgh,PIN065653,6370
FCDO,CSC,13/10/2023,Tuition Fee,Award Costs,The University of Edinburgh,PIN065654,5700
FCDO,CSC,13/10/2023,Tuition Fee,Award Costs,The University of Edinburgh,PIN065655,6370
FCDO,CSC,13/10/2023,Tuition Fee,Award Costs,The University of Edinburgh,PIN065656,6370
FCDO,CSC,13/10/2023,Tuition Fee,Award Costs,The University of Edinburgh,PIN065657,5700
FCDO,CSC,13/10/2023,Tuition Fee,Award Costs,The University of Edinburgh,PIN065677,18000
FCDO,CSC,13/10/2023,Tuition Fee,Award Costs,The University of Edinburgh,PIN065678,18000
FCDO,CSC,13/10/2023,Tuition Fee,Award Costs,Cranfield University,PIN065692,15096
FCDO,CSC,13/10/2023,Tuition Fee,Award Costs,The University of Edinburgh,PIN065695,5000
FCDO,CSC,13/10/2023,Tuition Fee,Award Costs,University of Essex,PIN065696,14315
FCDO,CSC,13/10/2023,Tuition Fee,Award Costs,The University of Edinburgh,PIN065699,9000
FCDO,CSC,13/10/2023,Tuition Fee,Award Costs,The University of Edinburgh,PIN065700,5070
FCDO,CSC,13/10/2023,Tuition Fee,Award Costs,The University of Edinburgh,PIN065701,9000
FCDO,CSC,13/10/2023,Tuition Fee,Award Costs,The University of Edinburgh,PIN065702,6370
FCDO,CSC,13/10/2023,Tuition Fee,Award Costs,The University of Edinburgh,PIN065703,5320
FCDO,CSC,13/10/2023,Tuition Fee,Award Costs,The University of Edinburgh,PIN065704,7600
FCDO,CSC,13/10/2023,Tuition Fee,Award Costs,The University of Edinburgh,PIN065705,5700
FCDO,CSC,13/10/2023,Tuition Fee,Award Costs,The University of Edinburgh,PIN065706,6370
FCDO,CSC,13/10/2023,Tuition Fee,Award Costs,University of Glasgow,PIN065673,18000
FCDO,CSC,13/10/2023,Award Support Costs,Award Costs,University of Glasgow,PIN065674,5000
FCDO,CSC,13/10/2023,Tuition Fee,Award Costs,University of Glasgow,PIN065675,18000
FCDO,CSC,13/10/2023,Engagement,Programme Costs,Scholar,PIN065710,1249.2
FCDO,CSC,13/10/2023,Tuition Fee,Award Costs,The University of Edinburgh,PIN065697,18000
FCDO,CSC,13/10/2023,Programme VAT,Programme Costs,Association of Commonwealth Univs,PIN065729,59000
FCDO,CSC,13/10/2023,Administration Fee,Admin Costs,Association of Commonwealth Univs,PIN065729,295000
FCDO,CSC,13/10/2023,Admin VAT,Admin Costs,Association of Commonwealth Univs,PIN065729,13700
FCDO,CSC,13/10/2023,Administration Fee,Admin Costs,Association of Commonwealth Univs,PIN065729,68500
FCDO,CSC,13/10/2023,Admin VAT,Admin Costs,Association of Commonwealth Univs,PIN065729,15000
FCDO,CSC,13/10/2023,Administration Fee,Admin Costs,Association of Commonwealth Univs,PIN065729,75000
FCDO,CSC,13/10/2023,Admin VAT,Admin Costs,Association of Commonwealth Univs,PIN065729,1350
FCDO,CSC,13/10/2023,Administration Fee,Admin Costs,Association of Commonwealth Univs,PIN065729,6750
FCDO,CSC,13/10/2023,Admin VAT,Admin Costs,Association of Commonwealth Univs,PIN065729,2100
FCDO,CSC,13/10/2023,Administration Fee,Admin Costs,Association of Commonwealth Univs,PIN065729,10500
FCDO,CSC,13/10/2023,Admin VAT,Admin Costs,Association of Commonwealth Univs,PIN065729,11500
FCDO,CSC,13/10/2023,Administration Fee,Admin Costs,Association of Commonwealth Univs,PIN065729,57500
FCDO,CSC,13/10/2023,Admin VAT,Admin Costs,Association of Commonwealth Univs,PIN065729,10050
FCDO,CSC,13/10/2023,Administration Fee,Admin Costs,Association of Commonwealth Univs,PIN065729,50250
FCDO,CSC,13/10/2023,Admin VAT,Admin Costs,Association of Commonwealth Univs,PIN065729,15150
FCDO,CSC,13/10/2023,Administration Fee,Admin Costs,Association of Commonwealth Univs,PIN065729,75750
FCDO,CSC,13/10/2023,Scholar Allowances,Award Costs,Scholar,PIN065629,600
FCDO,CSC,13/10/2023,Scholar Allowances,Award Costs,Scholar,PIN065630,600
FCDO,CSC,13/10/2023,Scholar Allowances,Award Costs,Scholar,PIN065632,600
FCDO,CSC,13/10/2023,Reimbursements,Award Costs,Scholar,PIN065633,820
FCDO,CSC,13/10/2023,Scholar Stipend,Award Costs,Scholar,PIN065635,3345.06
FCDO,CSC,13/10/2023,Scholar Stipend,Award Costs,Scholar,PIN065719,933.97
FCDO,CSC,13/10/2023,Scholar Stipend,Award Costs,Scholar,PIN065720,1055.8
FCDO,CSC,13/10/2023,Scholar Allowances,Award Costs,Scholar,PIN065721,350
FCDO,CSC,13/10/2023,Scholar Stipend,Award Costs,Scholar,PIN065721,531.05
FCDO,CSC,13/10/2023,Scholar Stipend,Award Costs,Scholar,PIN065722,1347
FCDO,CSC,13/10/2023,Scholar Stipend,Award Costs,Scholar,PIN065723,1652
FCDO,CSC,13/10/2023,Scholar Allowances,Award Costs,Scholar,PIN065725,290
FCDO,CSC,13/10/2023,Scholar Allowances,Award Costs,Scholar,PIN065725,290
FCDO,CSC,13/10/2023,Scholar Stipend,Award Costs,Scholar,PIN065725,1347
FCDO,CSC,13/10/2023,Scholar Stipend,Award Costs,Scholar,PIN065726,1347
FCDO,CSC,13/10/2023,Scholar Stipend,Award Costs,Scholar,PIN065727,1347
FCDO,CSC,13/10/2023,Alumni Engagement,Programme Costs,Scholar,PIN065728,1065
FCDO,CSC,13/10/2023,Scholar Allowances,Award Costs,Scholar,PIN065712,1003.38
FCDO,CSC,13/10/2023,Scholar Allowances,Award Costs,Scholar,PIN065713,1012.8
FCDO,CSC,13/10/2023,Scholar Allowances,Award Costs,Scholar,PIN065714,946.16
FCDO,CSC,13/10/2023,Scholar Allowances,Award Costs,Scholar,PIN065714,946.16
FCDO,CSC,13/10/2023,Scholar Allowances,Award Costs,Scholar,PIN065715,747.88
FCDO,CSC,13/10/2023,Scholar Allowances,Award Costs,Scholar,PIN065716,870
FCDO,CSC,13/10/2023,Scholar Allowances,Award Costs,Scholar,PIN065716,870
FCDO,CSC,13/10/2023,Scholar Allowances,Award Costs,Scholar,PIN065717,889.05
FCDO,CSC,13/10/2023,Scholar Allowances,Award Costs,CLARKES OF LONDON,PIN065731,1040
FCDO,CSC,13/10/2023,Scholar Allowances,Award Costs,Scholar,PIN065732,1425
FCDO,CSC,13/10/2023,Scholar Allowances,Award Costs,Scholar,PIN065733,675
FCDO,CSC,13/10/2023,Cash Card Transfers,Award Costs,Scholar,PIN065734,4364.6
FCDO,CSC,13/10/2023,Cash Card Transfers,Award Costs,Scholar,PIN065735,2183.07
FCDO,CSC,13/10/2023,Cash Card Transfers,Award Costs,Scholar,PIN065736,4925.66
FCDO,CSC,13/10/2023,Cash Card Transfers,Award Costs,Scholar,PIN065737,4663.88
FCDO,CSC,13/10/2023,Cash Card Transfers,Award Costs,Scholar,PIN065738,4413.17
FCDO,CSC,13/10/2023,Cash Card Transfers,Award Costs,Scholar,PIN065739,3077.09
FCDO,CSC,13/10/2023,Cash Card Transfers,Award Costs,Scholar,PIN065740,4405.95
FCDO,CSC,13/10/2023,Cash Card Transfers,Award Costs,Scholar,PIN065741,4543.5
FCDO,CSC,13/10/2023,Cash Card Transfers,Award Costs,Scholar,PIN065742,4062.43
FCDO,CSC,13/10/2023,Tuition Fee,Award Costs,University of Surrey,PRF000296,-8333
FCDO,CSC,16/10/2023,Scholar Allowances,Award Costs,Scholar,PIN065763,1731
FCDO,CSC,16/10/2023,Bank Charges,Programme Costs,MasterCard Prepaid Management Services Ltd,PIN065763,17.31
FCDO,CSC,16/10/2023,Bank Charges,Programme Costs,MasterCard Prepaid Management Services Ltd,PIN065764,35
FCDO,CSC,16/10/2023,Scholar Allowances,Award Costs,Scholar,PIN065764,2625
FCDO,CSC,16/10/2023,Scholar Allowances,Award Costs,Scholar,PIN065764,875
FCDO,CSC,16/10/2023,Cash Card Transfers,Award Costs,Scholar,PIN065764,-4364.6
FCDO,CSC,16/10/2023,Cash Card Transfers,Award Costs,Scholar,PIN065764,-2183.07
FCDO,CSC,16/10/2023,Cash Card Transfers,Award Costs,Scholar,PIN065764,-4925.66
FCDO,CSC,16/10/2023,Cash Card Transfers,Award Costs,Scholar,PIN065764,-4405.95
FCDO,CSC,16/10/2023,Cash Card Transfers,Award Costs,Scholar,PIN065764,-4062.43
FCDO,CSC,16/10/2023,Cash Card Transfers,Award Costs,Scholar,PIN065764,-4663.88
FCDO,CSC,16/10/2023,Cash Card Transfers,Award Costs,Scholar,PIN065764,-4413.17
FCDO,CSC,16/10/2023,Cash Card Transfers,Award Costs,Scholar,PIN065764,-4543.5
FCDO,CSC,16/10/2023,Cash Card Transfers,Award Costs,Scholar,PIN065764,-3077.09
FCDO,CSC,20/10/2023,Scholar Allowances,Award Costs,Scholar,PIN065745,600
FCDO,CSC,20/10/2023,Scholar Allowances,Award Costs,Scholar,PIN065747,500
FCDO,CSC,20/10/2023,Scholar Allowances,Award Costs,Scholar,PIN065749,600
FCDO,CSC,20/10/2023,Scholar Allowances,Award Costs,Scholar,PIN065756,433
FCDO,CSC,20/10/2023,Scholar Allowances,Award Costs,Scholar,PIN065756,290
FCDO,CSC,20/10/2023,Scholar Stipend,Award Costs,Scholar,PIN065756,1652
FCDO,CSC,20/10/2023,Scholar Stipend,Award Costs,Scholar,PIN065759,1966.56
FCDO,CSC,20/10/2023,Scholar Allowances,Award Costs,Scholar,PIN065759,300
FCDO,CSC,20/10/2023,Scholar Allowances,Award Costs,Scholar,PIN065765,522
FCDO,CSC,20/10/2023,Scholar Allowances,Award Costs,Scholar,PIN065765,522
FCDO,CSC,20/10/2023,Scholar Allowances,Award Costs,Scholar,PIN065765,522
FCDO,CSC,20/10/2023,Scholar Allowances,Award Costs,Scholar,PIN065765,522
FCDO,CSC,20/10/2023,Scholar Allowances,Award Costs,Scholar,PIN065765,522
FCDO,CSC,20/10/2023,Scholar Stipend,Award Costs,Scholar,PIN065765,4389.6
FCDO,CSC,20/10/2023,Scholar Stipend,Award Costs,Scholar,PIN065765,3446.25
FCDO,CSC,20/10/2023,Scholar Stipend,Award Costs,Scholar,PIN065765,3225
FCDO,CSC,20/10/2023,Scholar Stipend,Award Costs,Scholar,PIN065765,4389.6
FCDO,CSC,20/10/2023,Scholar Stipend,Award Costs,Scholar,PIN065765,4443.88
FCDO,CSC,20/10/2023,Bank Charges,Programme Costs,MasterCard Prepaid Management Services Ltd,PIN065765,225.05
FCDO,CSC,20/10/2023,Cash Card Transfers,Award Costs,Scholar,PIN065766,3979.25
FCDO,CSC,20/10/2023,Cash Card Transfers,Award Costs,Scholar,PIN065767,4335
FCDO,CSC,20/10/2023,Cash Card Transfers,Award Costs,Scholar,PIN065768,3409.05
FCDO,CSC,20/10/2023,Cash Card Transfers,Award Costs,Scholar,PIN065769,4587.96
FCDO,CSC,23/10/2023,Cash Card Transfers,Award Costs,Scholar,PIN065920,-3979.25
FCDO,CSC,23/10/2023,Cash Card Transfers,Award Costs,Scholar,PIN065920,-4335
FCDO,CSC,23/10/2023,Cash Card Transfers,Award Costs,Scholar,PIN065920,-3409.05
FCDO,CSC,23/10/2023,Cash Card Transfers,Award Costs,Scholar,PIN065920,-4587.96
FCDO,CSC,24/10/2023,Scholar Allowances,Award Costs,Scholar,PIN065900,522
FCDO,CSC,24/10/2023,Scholar Allowances,Award Costs,Scholar,PIN065900,522
FCDO,CSC,24/10/2023,Scholar Allowances,Award Costs,Scholar,PIN065900,522
FCDO,CSC,24/10/2023,Scholar Stipend,Award Costs,Scholar,PIN065900,3402
FCDO,CSC,24/10/2023,Scholar Stipend,Award Costs,Scholar,PIN065900,3269.25
FCDO,CSC,24/10/2023,Scholar Stipend,Award Costs,Scholar,PIN065900,3048
FCDO,CSC,24/10/2023,Bank Charges,Programme Costs,MasterCard Prepaid Management Services Ltd,PIN065900,112.85
FCDO,CSC,25/10/2023,Scholar Stipend,Award Costs,Scholar,PRF000295,-1625.42
FCDO,CSC,26/10/2023,Cash Card Transfers,Award Costs,Scholar,PIN065896,5204.66
FCDO,CSC,26/10/2023,Cash Card Transfers,Award Costs,Scholar,PIN065897,5289.15
FCDO,CSC,26/10/2023,Cash Card Transfers,Award Costs,Scholar,PIN065898,4388.77
FCDO,CSC,26/10/2023,Cash Card Transfers,Award Costs,Scholar,PIN065899,2839.94
FCDO,CSC,27/10/2023,Tuition Fee,Award Costs,University of Chester,PIN065830,10646
FCDO,CSC,27/10/2023,Scholar Allowances,Award Costs,The University of Leeds,PIN065879,1575
FCDO,CSC,27/10/2023,Tuition Fee,Award Costs,University of Stirling,PIN065796,1900
FCDO,CSC,27/10/2023,Scholar Allowances,Award Costs,The Cambridge Commonwealth Trust,PIN065852,450
FCDO,CSC,27/10/2023,Scholar Allowances,Award Costs,The Cambridge Commonwealth Trust,PIN065852,380
FCDO,CSC,27/10/2023,Visa Costs,Award Costs,The Cambridge Commonwealth Trust,PIN065852,706.31
FCDO,CSC,27/10/2023,Scholar Travel,Award Costs,The Cambridge Commonwealth Trust,PIN065852,101.2
FCDO,CSC,27/10/2023,Tuition Fee,Award Costs,University of Strathclyde,PIN065783,4900
FCDO,CSC,27/10/2023,Tuition Fee,Award Costs,University of Strathclyde,PIN065805,4900
FCDO,CSC,27/10/2023,Tuition Fee,Award Costs,University of Strathclyde,PIN065807,4900
FCDO,CSC,27/10/2023,Tuition Fee,Award Costs,University of Strathclyde,PIN065809,4900
FCDO,CSC,27/10/2023,Tuition Fee,Award Costs,University of Strathclyde,PIN065811,4900
FCDO,CSC,27/10/2023,Award Support Costs,Award Costs,The University of Leeds,PIN065834,17241
FCDO,CSC,27/10/2023,Tuition Fee,Award Costs,University of Strathclyde,PIN065829,4900
FCDO,CSC,27/10/2023,Tuition Fee,Award Costs,University of Strathclyde,PIN065858,4900
FCDO,CSC,27/10/2023,Tuition Fee,Award Costs,Loughborough University,PIN065794,1500
FCDO,CSC,27/10/2023,Tuition Fee,Award Costs,Loughborough University,PIN065862,1687.5
FCDO,CSC,27/10/2023,Tuition Fee,Award Costs,Loughborough University,PIN065864,1500
FCDO,CSC,27/10/2023,Scholar Travel,Award Costs,Diversity Travel,PIN065895,2819.21
FCDO,CSC,27/10/2023,Scholar Travel,Award Costs,Diversity Travel,PIN065895,2806.37
FCDO,CSC,27/10/2023,Scholar Travel,Award Costs,Diversity Travel,PIN065895,2794.1
FCDO,CSC,27/10/2023,Scholar Travel,Award Costs,Diversity Travel,PIN065895,2791.46
FCDO,CSC,27/10/2023,Scholar Travel,Award Costs,Diversity Travel,PIN065895,2679.99
FCDO,CSC,27/10/2023,Scholar Travel,Award Costs,Diversity Travel,PIN065895,2675.9
FCDO,CSC,27/10/2023,Scholar Travel,Award Costs,Diversity Travel,PIN065895,2514.13
FCDO,CSC,27/10/2023,Scholar Travel,Award Costs,Diversity Travel,PIN065895,2485.38
FCDO,CSC,27/10/2023,Scholar Travel,Award Costs,Diversity Travel,PIN065895,2459.58
FCDO,CSC,27/10/2023,Scholar Travel,Award Costs,Diversity Travel,PIN065895,2435.56
FCDO,CSC,27/10/2023,Scholar Travel,Award Costs,Diversity Travel,PIN065895,2371.67
FCDO,CSC,27/10/2023,Scholar Travel,Award Costs,Diversity Travel,PIN065895,2308.84
FCDO,CSC,27/10/2023,Scholar Travel,Award Costs,Diversity Travel,PIN065895,2272.3
FCDO,CSC,27/10/2023,Scholar Travel,Award Costs,Diversity Travel,PIN065895,2270.09
FCDO,CSC,27/10/2023,Scholar Travel,Award Costs,Diversity Travel,PIN065895,2265.47
FCDO,CSC,27/10/2023,Scholar Travel,Award Costs,Diversity Travel,PIN065895,2173
FCDO,CSC,27/10/2023,Scholar Travel,Award Costs,Diversity Travel,PIN065895,2172.54
FCDO,CSC,27/10/2023,Scholar Travel,Award Costs,Diversity Travel,PIN065895,2160.2
FCDO,CSC,27/10/2023,Scholar Travel,Award Costs,Diversity Travel,PIN065895,2139.58
FCDO,CSC,27/10/2023,Scholar Travel,Award Costs,Diversity Travel,PIN065895,2131
FCDO,CSC,27/10/2023,Scholar Travel,Award Costs,Diversity Travel,PIN065895,2119.74
FCDO,CSC,27/10/2023,Scholar Travel,Award Costs,Diversity Travel,PIN065895,2118.64
FCDO,CSC,27/10/2023,Scholar Travel,Award Costs,Diversity Travel,PIN065895,2079.6
FCDO,CSC,27/10/2023,Scholar Travel,Award Costs,Diversity Travel,PIN065895,2065.57
FCDO,CSC,27/10/2023,Scholar Travel,Award Costs,Diversity Travel,PIN065895,2063.6
FCDO,CSC,27/10/2023,Scholar Travel,Award Costs,Diversity Travel,PIN065895,2051.39
FCDO,CSC,27/10/2023,Scholar Travel,Award Costs,Diversity Travel,PIN065895,2032.33
FCDO,CSC,27/10/2023,Scholar Travel,Award Costs,Diversity Travel,PIN065895,2026.36
FCDO,CSC,27/10/2023,Scholar Travel,Award Costs,Diversity Travel,PIN065895,2019.9
FCDO,CSC,27/10/2023,Scholar Travel,Award Costs,Diversity Travel,PIN065895,1855.63
FCDO,CSC,27/10/2023,Scholar Travel,Award Costs,Diversity Travel,PIN065895,1854.85
FCDO,CSC,27/10/2023,Scholar Travel,Award Costs,Diversity Travel,PIN065895,1832.3
FCDO,CSC,27/10/2023,Scholar Travel,Award Costs,Diversity Travel,PIN065895,1802.88
FCDO,CSC,27/10/2023,Scholar Travel,Award Costs,Diversity Travel,PIN065895,1774.33
FCDO,CSC,27/10/2023,Scholar Travel,Award Costs,Diversity Travel,PIN065895,1765.98
FCDO,CSC,27/10/2023,Scholar Travel,Award Costs,Diversity Travel,PIN065895,1765.98
FCDO,CSC,27/10/2023,Scholar Travel,Award Costs,Diversity Travel,PIN065895,1719.59
FCDO,CSC,27/10/2023,Scholar Travel,Award Costs,Diversity Travel,PIN065895,1657.85
FCDO,CSC,27/10/2023,Scholar Travel,Award Costs,Diversity Travel,PIN065895,1655.53
FCDO,CSC,27/10/2023,Scholar Travel,Award Costs,Diversity Travel,PIN065895,1648.83
FCDO,CSC,27/10/2023,Scholar Travel,Award Costs,Diversity Travel,PIN065895,1633.3
FCDO,CSC,27/10/2023,Scholar Travel,Award Costs,Diversity Travel,PIN065895,1628.25
FCDO,CSC,27/10/2023,Scholar Travel,Award Costs,Diversity Travel,PIN065895,1618.17
FCDO,CSC,27/10/2023,Scholar Travel,Award Costs,Diversity Travel,PIN065895,1602.4
FCDO,CSC,27/10/2023,Scholar Travel,Award Costs,Diversity Travel,PIN065895,1597.98
FCDO,CSC,27/10/2023,Scholar Travel,Award Costs,Diversity Travel,PIN065895,1595.9
FCDO,CSC,27/10/2023,Scholar Travel,Award Costs,Diversity Travel,PIN065895,1593.19
FCDO,CSC,27/10/2023,Scholar Travel,Award Costs,Diversity Travel,PIN065895,1585.76
FCDO,CSC,27/10/2023,Scholar Travel,Award Costs,Diversity Travel,PIN065895,1584.83
FCDO,CSC,27/10/2023,Scholar Travel,Award Costs,Diversity Travel,PIN065895,1571.73
FCDO,CSC,27/10/2023,Scholar Travel,Award Costs,Diversity Travel,PIN065895,1569.5
FCDO,CSC,27/10/2023,Scholar Travel,Award Costs,Diversity Travel,PIN065895,1563.96
FCDO,CSC,27/10/2023,Scholar Travel,Award Costs,Diversity Travel,PIN065895,1542.1
FCDO,CSC,27/10/2023,Scholar Travel,Award Costs,Diversity Travel,PIN065895,1541.08
FCDO,CSC,27/10/2023,Scholar Travel,Award Costs,Diversity Travel,PIN065895,1540.88
FCDO,CSC,27/10/2023,Scholar Travel,Award Costs,Diversity Travel,PIN065895,1535.15
FCDO,CSC,27/10/2023,Scholar Travel,Award Costs,Diversity Travel,PIN065895,1534.5
FCDO,CSC,27/10/2023,Scholar Travel,Award Costs,Diversity Travel,PIN065895,1500.4
FCDO,CSC,27/10/2023,Scholar Travel,Award Costs,Diversity Travel,PIN065895,1488.9
FCDO,CSC,27/10/2023,Scholar Travel,Award Costs,Diversity Travel,PIN065895,1477.4
FCDO,CSC,27/10/2023,Scholar Travel,Award Costs,Diversity Travel,PIN065895,1467.49
FCDO,CSC,27/10/2023,Scholar Travel,Award Costs,Diversity Travel,PIN065895,1441.9
FCDO,CSC,27/10/2023,Scholar Travel,Award Costs,Diversity Travel,PIN065895,1438.23
FCDO,CSC,27/10/2023,Scholar Travel,Award Costs,Diversity Travel,PIN065895,1425.19
FCDO,CSC,27/10/2023,Scholar Travel,Award Costs,Diversity Travel,PIN065895,1412.74
FCDO,CSC,27/10/2023,Scholar Travel,Award Costs,Diversity Travel,PIN065895,1395
FCDO,CSC,27/10/2023,Scholar Travel,Award Costs,Diversity Travel,PIN065895,1391.45
FCDO,CSC,27/10/2023,Scholar Travel,Award Costs,Diversity Travel,PIN065895,1384.31
FCDO,CSC,27/10/2023,Scholar Travel,Award Costs,Diversity Travel,PIN065895,1345.41
FCDO,CSC,27/10/2023,Scholar Travel,Award Costs,Diversity Travel,PIN065895,1335.83
FCDO,CSC,27/10/2023,Scholar Travel,Award Costs,Diversity Travel,PIN065895,1327.4
FCDO,CSC,27/10/2023,Scholar Travel,Award Costs,Diversity Travel,PIN065895,1321.58
FCDO,CSC,27/10/2023,Scholar Travel,Award Costs,Diversity Travel,PIN065895,1288.93
FCDO,CSC,27/10/2023,Scholar Travel,Award Costs,Diversity Travel,PIN065895,1285.6
FCDO,CSC,27/10/2023,Scholar Travel,Award Costs,Diversity Travel,PIN065895,1272.17
FCDO,CSC,27/10/2023,Scholar Travel,Award Costs,Diversity Travel,PIN065895,1245.4
FCDO,CSC,27/10/2023,Scholar Travel,Award Costs,Diversity Travel,PIN065895,1241.1
FCDO,CSC,27/10/2023,Scholar Travel,Award Costs,Diversity Travel,PIN065895,1241.1
FCDO,CSC,27/10/2023,Scholar Travel,Award Costs,Diversity Travel,PIN065895,1235.1
FCDO,CSC,27/10/2023,Scholar Travel,Award Costs,Diversity Travel,PIN065895,1187.53
FCDO,CSC,27/10/2023,Scholar Travel,Award Costs,Diversity Travel,PIN065895,1187.38
FCDO,CSC,27/10/2023,Scholar Travel,Award Costs,Diversity Travel,PIN065895,1172.96
FCDO,CSC,27/10/2023,Fieldwork Airfare,Award Costs,Diversity Travel,PIN065895,1169.51
FCDO,CSC,27/10/2023,Scholar Travel,Award Costs,Diversity Travel,PIN065895,1166.9
FCDO,CSC,27/10/2023,Scholar Travel,Award Costs,Diversity Travel,PIN065895,1138.14
FCDO,CSC,27/10/2023,Scholar Travel,Award Costs,Diversity Travel,PIN065895,1135.3
FCDO,CSC,27/10/2023,Scholar Travel,Award Costs,Diversity Travel,PIN065895,1121.67
FCDO,CSC,27/10/2023,Scholar Travel,Award Costs,Diversity Travel,PIN065895,1115.64
FCDO,CSC,27/10/2023,Scholar Travel,Award Costs,Diversity Travel,PIN065895,1114.07
FCDO,CSC,27/10/2023,Scholar Travel,Award Costs,Diversity Travel,PIN065895,1112.3
FCDO,CSC,27/10/2023,Scholar Travel,Award Costs,Diversity Travel,PIN065895,1096.49
FCDO,CSC,27/10/2023,Scholar Travel,Award Costs,Diversity Travel,PIN065895,1095.15
FCDO,CSC,27/10/2023,Scholar Travel,Award Costs,Diversity Travel,PIN065895,1094.43
FCDO,CSC,27/10/2023,Scholar Travel,Award Costs,Diversity Travel,PIN065895,1094.07
FCDO,CSC,27/10/2023,Scholar Travel,Award Costs,Diversity Travel,PIN065895,1092.99
FCDO,CSC,27/10/2023,Scholar Travel,Award Costs,Diversity Travel,PIN065895,1086.88
FCDO,CSC,27/10/2023,Scholar Travel,Award Costs,Diversity Travel,PIN065895,1083.4
FCDO,CSC,27/10/2023,Scholar Travel,Award Costs,Diversity Travel,PIN065895,1079.35
FCDO,CSC,27/10/2023,Scholar Travel,Award Costs,Diversity Travel,PIN065895,1078.8
FCDO,CSC,27/10/2023,Scholar Travel,Award Costs,Diversity Travel,PIN065895,1063.11
FCDO,CSC,27/10/2023,Scholar Travel,Award Costs,Diversity Travel,PIN065895,1058.87
FCDO,CSC,27/10/2023,Scholar Travel,Award Costs,Diversity Travel,PIN065895,1058.15
FCDO,CSC,27/10/2023,Scholar Travel,Award Costs,Diversity Travel,PIN065895,1046.6
FCDO,CSC,27/10/2023,Scholar Travel,Award Costs,Diversity Travel,PIN065895,983.99
FCDO,CSC,27/10/2023,Scholar Travel,Award Costs,Diversity Travel,PIN065895,975.59
FCDO,CSC,27/10/2023,Scholar Travel,Award Costs,Diversity Travel,PIN065895,975.03
FCDO,CSC,27/10/2023,Scholar Travel,Award Costs,Diversity Travel,PIN065895,974.78
FCDO,CSC,27/10/2023,Scholar Travel,Award Costs,Diversity Travel,PIN065895,962.96
FCDO,CSC,27/10/2023,Scholar Travel,Award Costs,Diversity Travel,PIN065895,962.79
FCDO,CSC,27/10/2023,Scholar Travel,Award Costs,Diversity Travel,PIN065895,958.07
FCDO,CSC,27/10/2023,Scholar Travel,Award Costs,Diversity Travel,PIN065895,951.29
FCDO,CSC,27/10/2023,Scholar Travel,Award Costs,Diversity Travel,PIN065895,948.71
FCDO,CSC,27/10/2023,Scholar Travel,Award Costs,Diversity Travel,PIN065895,940.21
FCDO,CSC,27/10/2023,Scholar Travel,Award Costs,Diversity Travel,PIN065895,906.21
FCDO,CSC,27/10/2023,Scholar Travel,Award Costs,Diversity Travel,PIN065895,904.41
FCDO,CSC,27/10/2023,Scholar Travel,Award Costs,Diversity Travel,PIN065895,903.18
FCDO,CSC,27/10/2023,Scholar Travel,Award Costs,Diversity Travel,PIN065895,892.07
FCDO,CSC,27/10/2023,Scholar Travel,Award Costs,Diversity Travel,PIN065895,891.98
FCDO,CSC,27/10/2023,Scholar Travel,Award Costs,Diversity Travel,PIN065895,891.09
FCDO,CSC,27/10/2023,Scholar Travel,Award Costs,Diversity Travel,PIN065895,887.77
FCDO,CSC,27/10/2023,Scholar Travel,Award Costs,Diversity Travel,PIN065895,885.27
FCDO,CSC,27/10/2023,Scholar Travel,Award Costs,Diversity Travel,PIN065895,885.15
FCDO,CSC,27/10/2023,Scholar Travel,Award Costs,Diversity Travel,PIN065895,882.64
FCDO,CSC,27/10/2023,Scholar Travel,Award Costs,Diversity Travel,PIN065895,879.67
FCDO,CSC,27/10/2023,Scholar Travel,Award Costs,Diversity Travel,PIN065895,862.2
FCDO,CSC,27/10/2023,Scholar Travel,Award Costs,Diversity Travel,PIN065895,853.25
FCDO,CSC,27/10/2023,Scholar Travel,Award Costs,Diversity Travel,PIN065895,838.05
FCDO,CSC,27/10/2023,Fieldwork Airfare,Award Costs,Diversity Travel,PIN065895,825.94
FCDO,CSC,27/10/2023,Scholar Travel,Award Costs,Diversity Travel,PIN065895,812.01
FCDO,CSC,27/10/2023,Scholar Travel,Award Costs,Diversity Travel,PIN065895,804.68
FCDO,CSC,27/10/2023,Scholar Travel,Award Costs,Diversity Travel,PIN065895,788.14
FCDO,CSC,27/10/2023,Scholar Travel,Award Costs,Diversity Travel,PIN065895,764.86
FCDO,CSC,27/10/2023,Scholar Travel,Award Costs,Diversity Travel,PIN065895,661.71
FCDO,CSC,27/10/2023,Scholar Travel,Award Costs,Diversity Travel,PIN065895,447.99
FCDO,CSC,27/10/2023,Scholar Travel,Award Costs,Diversity Travel,PIN065895,438.5
FCDO,CSC,27/10/2023,Scholar Travel,Award Costs,Diversity Travel,PIN065895,368
FCDO,CSC,27/10/2023,Scholar Travel,Award Costs,Diversity Travel,PIN065895,180
FCDO,CSC,27/10/2023,Scholar Travel,Award Costs,Diversity Travel,PIN065895,173.4
FCDO,CSC,27/10/2023,Scholar Travel,Award Costs,Diversity Travel,PIN065895,106.7
FCDO,CSC,27/10/2023,Scholar Travel,Award Costs,Diversity Travel,PIN065895,97
FCDO,CSC,27/10/2023,Scholar Travel,Award Costs,Diversity Travel,PIN065895,86.9
FCDO,CSC,27/10/2023,Scholar Travel,Award Costs,Diversity Travel,PIN065895,85.8
FCDO,CSC,27/10/2023,Scholar Travel,Award Costs,Diversity Travel,PIN065895,73.2
FCDO,CSC,27/10/2023,Scholar Travel,Award Costs,Diversity Travel,PIN065895,71.7
FCDO,CSC,27/10/2023,Scholar Travel,Award Costs,Diversity Travel,PIN065895,70
FCDO,CSC,27/10/2023,Scholar Travel,Award Costs,Diversity Travel,PIN065895,67.4
FCDO,CSC,27/10/2023,Scholar Travel,Award Costs,Diversity Travel,PIN065895,65.7
FCDO,CSC,27/10/2023,Scholar Travel,Award Costs,Diversity Travel,PIN065895,63.5
FCDO,CSC,27/10/2023,Scholar Travel,Award Costs,Diversity Travel,PIN065895,60.1
FCDO,CSC,27/10/2023,Scholar Travel,Award Costs,Diversity Travel,PIN065895,59.2
FCDO,CSC,27/10/2023,Scholar Travel,Award Costs,Diversity Travel,PIN065895,56.5
FCDO,CSC,27/10/2023,Scholar Travel,Award Costs,Diversity Travel,PIN065895,54.7
FCDO,CSC,27/10/2023,Scholar Travel,Award Costs,Diversity Travel,PIN065895,54.2
FCDO,CSC,27/10/2023,Scholar Travel,Award Costs,Diversity Travel,PIN065895,53.7
FCDO,CSC,27/10/2023,Scholar Travel,Award Costs,Diversity Travel,PIN065895,50.6
FCDO,CSC,27/10/2023,Scholar Travel,Award Costs,Diversity Travel,PIN065895,41
FCDO,CSC,27/10/2023,Scholar Travel,Award Costs,Diversity Travel,PIN065895,33.2
FCDO,CSC,27/10/2023,Scholar Travel,Award Costs,Diversity Travel,PIN065895,28.3
FCDO,CSC,27/10/2023,Scholar Travel,Award Costs,Diversity Travel,PIN065895,23.3
FCDO,CSC,27/10/2023,Scholar Travel,Award Costs,Diversity Travel,PIN065895,20.9
FCDO,CSC,27/10/2023,Scholar Travel,Award Costs,Diversity Travel,PIN065895,15
FCDO,CSC,27/10/2023,Scholar Travel,Award Costs,Diversity Travel,PIN065895,-389.04
FCDO,CSC,27/10/2023,Scholar Travel,Award Costs,Diversity Travel,PIN065895,-830.76
FCDO,CSC,27/10/2023,Scholar Travel,Award Costs,Diversity Travel,PIN065895,-1931.14
FCDO,CSC,27/10/2023,Tuition Fee,Award Costs,University of Bristol,PIN065840,22500
FCDO,CSC,27/10/2023,Tuition Fee,Award Costs,University of Bristol,PIN065841,18000
FCDO,CSC,27/10/2023,Tuition Fee,Award Costs,University of Bristol,PIN065842,22500
FCDO,CSC,27/10/2023,Tuition Fee,Award Costs,University of Bristol,PIN065843,22500
FCDO,CSC,27/10/2023,Tuition Fee,Award Costs,University of Bristol,PIN065844,22500
FCDO,CSC,27/10/2023,Tuition Fee,Award Costs,University of Bristol,PIN065845,22500
FCDO,CSC,27/10/2023,Tuition Fee,Award Costs,University of Bristol,PIN065846,22500
FCDO,CSC,27/10/2023,Tuition Fee,Award Costs,University of Bristol,PIN065847,18000
FCDO,CSC,27/10/2023,Tuition Fee,Award Costs,University of Bristol,PIN065848,22500
FCDO,CSC,27/10/2023,Tuition Fee,Award Costs,University of Essex,PIN065785,14315
FCDO,CSC,27/10/2023,Tuition Fee,Award Costs,The University of Edinburgh,PIN065825,6035
FCDO,CSC,27/10/2023,Tuition Fee,Award Costs,Wolfson College,PIN065870,18000
FCDO,CSC,27/10/2023,Tuition Fee,Award Costs,The University of Edinburgh,PIN065786,6370
FCDO,CSC,27/10/2023,Tuition Fee,Award Costs,The University of Edinburgh,PIN065788,9000
FCDO,CSC,27/10/2023,Tuition Fee,Award Costs,The University of Edinburgh,PIN065790,7600
FCDO,CSC,27/10/2023,Tuition Fee,Award Costs,The University of Edinburgh,PIN065792,9000
FCDO,CSC,27/10/2023,Tuition Fee,Award Costs,The University of Edinburgh,PIN065795,7600
FCDO,CSC,27/10/2023,Tuition Fee,Award Costs,The University of Edinburgh,PIN065798,9000
FCDO,CSC,27/10/2023,Tuition Fee,Award Costs,The University of Edinburgh,PIN065799,9000
FCDO,CSC,27/10/2023,Tuition Fee,Award Costs,The University of Edinburgh,PIN065800,7600
FCDO,CSC,27/10/2023,Tuition Fee,Award Costs,The University of Edinburgh,PIN065802,2160
FCDO,CSC,27/10/2023,Tuition Fee,Award Costs,The University of Edinburgh,PIN065804,9000
FCDO,CSC,27/10/2023,Tuition Fee,Award Costs,The University of Edinburgh,PIN065806,5320
FCDO,CSC,27/10/2023,Tuition Fee,Award Costs,The University of Edinburgh,PIN065808,5700
FCDO,CSC,27/10/2023,Tuition Fee,Award Costs,The University of Edinburgh,PIN065810,9000
FCDO,CSC,27/10/2023,Tuition Fee,Award Costs,The University of Edinburgh,PIN065813,5320
FCDO,CSC,27/10/2023,Tuition Fee,Award Costs,The University of Edinburgh,PIN065824,9000
FCDO,CSC,27/10/2023,Tuition Fee,Award Costs,The University of Edinburgh,PIN065826,9000
FCDO,CSC,27/10/2023,Tuition Fee,Award Costs,The University of Edinburgh,PIN065827,9000
FCDO,CSC,27/10/2023,Tuition Fee,Award Costs,The University of Edinburgh,PIN065828,9000
FCDO,CSC,27/10/2023,Tuition Fee,Award Costs,Loughborough University,PIN065837,5633.4
FCDO,CSC,27/10/2023,Tuition Fee,Award Costs,Loughborough University,PIN065838,1770.6
FCDO,CSC,27/10/2023,Tuition Fee,Award Costs,The University of Birmingham,PIN065850,18000
FCDO,CSC,27/10/2023,Tuition Fee,Award Costs,The University of Edinburgh,PIN065860,5070
FCDO,CSC,27/10/2023,Tuition Fee,Award Costs,The University of Edinburgh,PIN065861,9000
FCDO,CSC,27/10/2023,Tuition Fee,Award Costs,The University of Edinburgh,PIN065876,18000
FCDO,CSC,27/10/2023,Tuition Fee,Award Costs,The University of Edinburgh,PIN065877,18000
FCDO,CSC,27/10/2023,Tuition Fee,Award Costs,The University of Edinburgh,PIN065878,18000
FCDO,CSC,27/10/2023,Tuition Fee,Award Costs,Loughborough University,PIN065814,1559.93
FCDO,CSC,27/10/2023,Tuition Fee,Award Costs,Loughborough University,PIN065815,1559.93
FCDO,CSC,27/10/2023,Tuition Fee,Award Costs,Loughborough University,PIN065816,1637.96
FCDO,CSC,27/10/2023,Tuition Fee,Award Costs,Loughborough University,PIN065817,1559.93
FCDO,CSC,27/10/2023,Tuition Fee,Award Costs,Loughborough University,PIN065818,1559.93
FCDO,CSC,27/10/2023,Tuition Fee,Award Costs,Loughborough University,PIN065819,1559.93
FCDO,CSC,27/10/2023,Tuition Fee,Award Costs,Loughborough University,PIN065820,1733.25
FCDO,CSC,27/10/2023,Tuition Fee,Award Costs,Loughborough University,PIN065821,1733.25
FCDO,CSC,27/10/2023,Tuition Fee,Award Costs,Loughborough University,PIN065822,1733.25
FCDO,CSC,27/10/2023,Tuition Fee,Award Costs,Loughborough University,PIN065823,1733.25
FCDO,CSC,27/10/2023,Tuition Fee,Award Costs,The University of York,PIN065831,15422
FCDO,CSC,27/10/2023,Tuition Fee,Award Costs,University of the West of England Bristol,PIN065839,11407.2
FCDO,CSC,27/10/2023,Tuition Fee,Award Costs,Linacre College Oxford,PIN065776,18000
FCDO,CSC,27/10/2023,Visa Costs,Award Costs,University of Stirling,PIN065854,68
FCDO,CSC,27/10/2023,Scholar Allowances,Award Costs,University of Stirling,PIN065854,200
FCDO,CSC,27/10/2023,Scholar Allowances,Award Costs,University of Stirling,PIN065854,225
FCDO,CSC,27/10/2023,Tuition Fee,Award Costs,University of Stirling,PIN065854,17775
FCDO,CSC,27/10/2023,Award Support Costs,Award Costs,University of Oxford,PIN065863,5000
FCDO,CSC,27/10/2023,Tuition Fee,Award Costs,Cranfield University,PIN065778,22500
FCDO,CSC,27/10/2023,Tuition Fee,Award Costs,The University of Leeds,PIN065812,18000
FCDO,CSC,27/10/2023,Tuition Fee,Award Costs,The University of Warwick,PIN065833,22500
FCDO,CSC,27/10/2023,Award Support Costs,Award Costs,The University of Leeds,PIN065835,5000
FCDO,CSC,27/10/2023,Tuition Fee,Award Costs,University of Southampton,PIN065853,18000
FCDO,CSC,27/10/2023,Tuition Fee,Award Costs,The University of Leeds,PIN065871,18000
FCDO,CSC,27/10/2023,Tuition Fee,Award Costs,The University of Leeds,PIN065872,18000
FCDO,CSC,27/10/2023,Tuition Fee,Award Costs,The University of Leeds,PIN065873,16200
FCDO,CSC,27/10/2023,Tuition Fee,Award Costs,The University of Leeds,PIN065874,18000
FCDO,CSC,27/10/2023,Tuition Fee,Award Costs,The University of Warwick,PIN065832,17408
FCDO,CSC,27/10/2023,Tuition Fee,Award Costs,Cranfield University,PIN065780,22500
FCDO,CSC,27/10/2023,Tuition Fee,Award Costs,Cranfield University,PIN065782,18000
FCDO,CSC,27/10/2023,Tuition Fee,Award Costs,Cranfield University,PIN065865,18000
FCDO,CSC,27/10/2023,Tuition Fee,Award Costs,Cranfield University,PIN065866,22500
FCDO,CSC,27/10/2023,Tuition Fee,Award Costs,Cranfield University,PIN065867,22500
FCDO,CSC,27/10/2023,Tuition Fee,Award Costs,Cranfield University,PIN065868,22500
FCDO,CSC,27/10/2023,Tuition Fee,Award Costs,Cranfield University,PIN065869,22500
FCDO,CSC,27/10/2023,Tuition Fee,Award Costs,Scholar,PIN065836,11284
FCDO,CSC,27/10/2023,Tuition Fee,Award Costs,University of Bath,PIN065849,18000
FCDO,CSC,27/10/2023,Award Support Costs,Award Costs,The University of Edinburgh,PIN065781,2000
FCDO,CSC,27/10/2023,Tuition Fee,Award Costs,Kings College London,PIN065851,22500
FCDO,CSC,27/10/2023,Tuition Fee,Award Costs,The University of Birmingham,PIN065770,22500
FCDO,CSC,27/10/2023,Tuition Fee,Award Costs,The University of Birmingham,PIN065771,21960
FCDO,CSC,27/10/2023,Tuition Fee,Award Costs,University of Glasgow,PIN065772,22500
FCDO,CSC,27/10/2023,Tuition Fee,Award Costs,University of Glasgow,PIN065773,4384
FCDO,CSC,27/10/2023,Award Support Costs,Award Costs,University of Glasgow,PIN065774,5000
FCDO,CSC,27/10/2023,Tuition Fee,Award Costs,University of Glasgow,PIN065775,18000
FCDO,CSC,27/10/2023,Tuition Fee,Award Costs,University of Glasgow,PIN065777,18000
FCDO,CSC,27/10/2023,Tuition Fee,Award Costs,University of Glasgow,PIN065779,18000
FCDO,CSC,27/10/2023,Award Support Costs,Award Costs,The University of Birmingham,PIN065789,1500
FCDO,CSC,27/10/2023,Tuition Fee,Award Costs,Kings College London,PIN065791,18000
FCDO,CSC,27/10/2023,Tuition Fee,Award Costs,Kings College London,PIN065793,18000
FCDO,CSC,27/10/2023,Award Support Costs,Award Costs,Edinburgh Napier University,PIN065787,5000
FCDO,CSC,27/10/2023,Tuition Fee,Award Costs,"St Mary's University, Twickenham, London",PIN065801,16350
FCDO,CSC,27/10/2023,Tuition Fee,Award Costs,Edinburgh Napier University,PIN065797,12896
FCDO,CSC,27/10/2023,Tuition Fee,Award Costs,University of Portsmouth,PIN065803,13600
FCDO,CSC,27/10/2023,Scholar Allowances,Award Costs,Scholar,PIN065882,600
FCDO,CSC,27/10/2023,Scholar Allowances,Award Costs,Scholar,PIN065919,522
FCDO,CSC,27/10/2023,Scholar Stipend,Award Costs,Scholar,PIN065919,2959.5
FCDO,CSC,27/10/2023,Scholar Allowances,Award Costs,Scholar,PIN065919,522
FCDO,CSC,27/10/2023,Scholar Stipend,Award Costs,Scholar,PIN065919,3092.25
FCDO,CSC,27/10/2023,Scholar Allowances,Award Costs,Scholar,PIN065919,522
FCDO,CSC,27/10/2023,Scholar Stipend,Award Costs,Scholar,PIN065919,3048
FCDO,CSC,27/10/2023,Cash Card Transfers,Award Costs,Scholar,PIN065919,-2839.94
FCDO,CSC,27/10/2023,Cash Card Transfers,Award Costs,Scholar,PIN065919,-4388.77
FCDO,CSC,27/10/2023,Cash Card Transfers,Award Costs,Scholar,PIN065919,-5289.15
FCDO,CSC,27/10/2023,Cash Card Transfers,Award Costs,Scholar,PIN065919,-5204.66
FCDO,CSC,27/10/2023,Bank Charges,Programme Costs,MasterCard Prepaid Management Services Ltd,PIN065919,106.66
FCDO,CSC,30/10/2023,Scholar Allowances,Award Costs,Scholar,PIN065901,600
FCDO,CSC,30/10/2023,Scholar Stipend,Award Costs,Scholar,PIN065902,3313.56
FCDO,CSC,31/10/2023,Alumni Engagement,Programme Costs,DHL International (UK) Limited,PIN065921,137.74
FCDO,CSC,31/10/2023,Postage & Courier,Programme Costs,DHL International (UK) Limited,PIN065921,1287.12
